Cogmind - Beta 15 @@@ ROGUE MODE // 2025.10.19 @ 14:20:48 Player: DietSnapple Result: Destroyed by G7-V23(R) with Subdweller Beam Cannon Performance ------------- Evolutions (0) 0 Regions Visited (2) 400 Robots Destroyed (22) 110 Value Destroyed (487) 487 Prototype IDs (2) 40 Alien Tech Used (0) 0 Bonus (0) 0 TOTAL SCORE: 1037 Bonus ------- None Cogmind --------- Core Integrity 0/250 Matter 172/300 Energy 78/100 System Corruption 0% Temperature Cool (9) Movement Core (200) Ox3 Location -10/Subcaves Parts ------- > --- POWER (1) -------- (None) > --- PROPULSION (2) --- (None) > --- UTILITY (2) ------ Medium Storage Unit > --- WEAPON (2) ------- EM Pulse Gun > --- INVENTORY (10) --- Wheel Improved Heat Sink Peak State ------------ > --- POWER ------------ Ion Engine > --- PROPULSION ------- Light Treads Light Treads > --- UTILITY ---------- Small Storage Unit Light Armor Plating > --- WEAPON ----------- Assault Rifle Light Assault Rifle > --- INVENTORY -------- Ion Engine Wheel Wheel Wheel Improved Heat Sink Utility Shielding Utility Shielding Light Armor Plating [Rating: 8] Favorites ----------- Power Ion Engine Engine Ion Engine Propulsion Light Treads Treads Light Treads Utility Light Armor Plating Storage Small Storage Unit Protection Light Armor Plating Weapon EM Pulse Gun Energy Gun EM Pulse Gun Ballistic Gun Assault Rifle Ballistic Cannon Light Cannon Build | -11 -10 -10 ------- Run | Yrd Mat Sub Slots Evolved . | . . . Power . | . . . Propulsion . | . . . Utility . | . . . Weapon . | . . . Parts Attached 18 | 6 8 4 Power 2 | 1 . 1 Engine 2 | 1 . 1 Core . | . . . Reactor . | . . . Propulsion 4 | 2 2 . Treads 4 | 2 2 . Leg . | . . . Wheel . | . . . Hover . | . . . Flight . | . . . Utility 4 | 1 2 1 Device . | . . . Storage 2 | 1 1 . Processor . | . . . Hackware . | . . . Protection 2 | . 1 1 Artifact . | . . . Weapon 8 | 2 4 2 Energy Gun 4 | 1 2 1 Energy Cannon . | . . . Ballistic Gun 3 | 1 1 1 Ballistic Cannon 1 | . 1 . Launcher . | . . . Special Weapon . | . . . Impact Weapon . | . . . Slashing Weapon . | . . . Piercing Weapon . | . . . Special Melee Weapon . | . . . Unidentified Prototypes . | . . . Parts Lost 10 | . . 10 Power 2 | . . 2 Propulsion 2 | . . 2 Utility 2 | . . 2 Weapon 4 | . . 4 Highest Loss Streak 5 | . . 5 To Critical Strikes . | . . . Average Backups 6 | 4 7 5 Power . | . 1 . Propulsion 2 | 3 2 1 Utility 1 | . 2 1 Weapon 1 | . 1 1 Tool/Special . | . . . Unused Backups 12 | . 8 4 Power . | . . . Propulsion 7 | . 4 3 Utility 4 | . 3 1 Weapon 1 | . 1 . Tool/Special . | . . . Average Slot Usage (%) 93 | . 94 93 Engine 13 | . 14 13 Treads 26 | . 28 24 Storage 14 | . 14 14 Protection 10 | . 8 13 Energy Gun 12 | . 13 12 Ballistic Gun 10 | . 12 7 Ballistic Cannon 3 | . 2 7 Peak Build Rating 8 | 6 8 8 Average Rating 6 | 4 7 6 On Entrance 4 | . 6 8 Naked Turns . | . . . Heaviest Build 23 | 14 22 23 Greatest Support 40 | 40 40 40 Greatest Overweight (x) 1 | . . 1 Average Overweight (x) . | . . . Largest Inventory Capacity 10 | 8 10 10 Average Capacity 8 | 6 8 10 Most Carried 8 | 6 8 8 Average Carried 6 | 4 7 5 Final Capacity 10 | 8 10 10 Final Carried 8 | 6 8 2 Class Distribution -------------------- 100% | Mutant Dominant Class ---------------- Mutant | -10/Materials Mutant | -10/Subcaves Resources | -11 -10 -10 ----------- Run | Yrd Mat Sub Matter Collected 616 | 243 278 95 Remotely . | . . . Salvage Created 646 | . 369 277 Parts 42 | . 27 15 Haulers Intercepted 1 | . 1 . Recyclers Shooed . | . . . Parts Field Recycled . | . . . Retrieved Matter . | . . . Parts Self-Destructed 9 | . . 9 Prevented . | . . . Kills | -11 -10 -10 ------- Run | Yrd Mat Sub Combat Hostiles Destroyed 20 | . 13 7 Guns 17 | . 13 4 Cannons 3 | . . 3 Classes Destroyed 5 | . 4 1 Hauler 1 | . 1 . Watcher 1 | . 1 . Swarmer 11 | . 9 2 Grunt 4 | . 4 . Subdweller 5 | . . 5 Best Kill Streak 3 | . 3 3 Combat Bots Only 3 | . 3 3 Max Kills in Single Turn 1 | . 1 1 Gunslinging . | . . . Exploded . | . . . Melee . | . . . Uniques/NPCs Destroyed . | . . . Combat | -11 -10 -10 -------- Run | Yrd Mat Sub Hostile Shots Fired 190 | . 69 121 Missed 66 | . 23 43 Hits 124 | . 46 78 Projectile 124 | . 46 78 Critical Strikes 1 | . . 1 Damage Taken 1531 | . 418 1113 Core 273 | . 44 229 Absorbed by Shields . | . . . Core Remaining (%) 100 | 100 . . Volleys Fired 93 | . 53 40 Largest 2 | . 2 2 Hottest 80 | . 80 80 Shots Fired 170 | . 106 64 Gun 139 | . 94 45 Cannon 31 | . 12 19 Launcher . | . . . Special . | . . . Kinetic 124 | . 84 40 Thermal . | . . . Explosive . | . . . Electromagnetic 46 | . 22 24 Robot Hit Streak 11 | . 9 11 Robot Miss Streak 4 | . 4 3 Penetration Max . | . . . Secondary Targets 3 | . 3 . Max Gunslinging Chain 1 | . 1 . Shots Hit Robots 102 | . 56 46 Core Hits 36 | . 22 14 Critical Kills . | . . . Critical Parts Destroyed . | . . . Critical Strikes 1 | . . 1 Blast 1 | . . 1 Melee Attacks . | . . . Impact . | . . . Slashing . | . . . Piercing . | . . . Sneak Attacks . | . . . Combat Hostiles . | . . . Follow-up Attacks . | . . . Damage Inflicted 1261 | . 720 541 Guns 943 | . 617 326 Cannons 318 | . 103 215 Explosions . | . . . Melee . | . . . Ramming . | . . . Kinetic 925 | . 554 371 Thermal . | . . . Explosive . | . . . Electromagnetic 336 | . 166 170 Impact . | . . . Slashing . | . . . Piercing . | . . . Highest Corruption . | . . . Average Corruption . | . . . Corruption Purged . | . . . Corruption Blocked . | . . . Overload Shots . | . . . Overflow Damage . | . . . Projectiles . | . . . Explosions . | . . . Melee . | . . . Knockbacks 4 | . . 4 Impact . | . . . Kinetic 3 | . . 3 Secondary 1 | . . 1 Self-Inflicted Damage . | . . . Shots . | . . . Rammed . | . . . Targets Rammed . | . . . Kicked . | . . . Crushed . | . . . Highest Temperature 108 | . 108 . Average Temperature 34 | . 34 . Received Heat Transfer 441 | . 72 369 Siege Activations . | . . . Martial Activations . | . . . Shielding Activations . | . . . Robots Disrupted . | . . . Combat Hostiles . | . . . Robots Corrupted 1 | . 1 . Combat Hostiles . | . . . Parts Fried 3 | . . 3 Impact Corruptions . | . . . Robots Melted . | . . . Combat Hostiles . | . . . Parts Melted . | . . . Heat Transferred . | . . . Parts Sabotaged . | . . . Parts Stolen . | . . . Parts Stripped . | . . . Power Chain Reactions . | . . . Alert | -11 -10 -10 ------- Run | Yrd Mat Sub Maximum Alert Level . | . . . Low Security (%) 100 | 100 100 . Level 1 . | . . . Level 2 . | . . . Level 3 . | . . . Level 4 . | . . . Level 5 . | . . . High Security . | . . . Max Security . | . . . Peak Influence 137 | . 137 . Initial . | . . . Average 32 | . 35 . Influence Increases 473 | . 388 85 Destroy 0b10 Robot/C 300 | . 260 40 Destroy 0b10 Robot/NC 10 | . 10 . Destroy Leader 44 | . 44 . Successful Hack 13 | . 13 . Disable Machine 15 | . 15 . Destroy Structure 1 | . 1 . Lose Combat Pursuer 90 | . 45 45 Influence Decreases 473 | . 388 85 Time Decay 453 | . 388 65 Lost Part 20 | . . 20 Squads Dispatched . | . . . Investigation . | . . . Extermination . | . . . Reinforcement . | . . . Assault . | . . . Garrison . | . . . Intercept . | . . . Searches Triggered . | . . . Construction Impeded . | . . . Haulers Reinforced . | . . . Active Scanning Responses . | . . . Cargo Convoy Interrupts . | . . . Stealth | -11 -10 -10 --------- Run | Yrd Mat Sub Distress Signals . | . . . Communications Jammed . | . . . Distress Signals . | . . . Times Spotted 37 | . 26 11 Peak Tracking Total 6 | . 5 6 Tactical Retreats 5 | . 3 2 Traps | -11 -10 -10 ------- Run | Yrd Mat Sub Traps Triggered 1 | . 1 . Indirectly . | . . . Trap Hack Attempts . | . . . Triggered . | . . . Disarmed . | . . . Reprogrammed . | . . . Reused . | . . . Traps Extracted . | . . . Installed . | . . . Triggered . | . . . Machines | -11 -10 -10 ---------- Run | Yrd Mat Sub Machines Disabled 1 | . 1 . Max in Single Turn 1 | . 1 . Machines Repaired . | . . . Machines Dismantled . | . . . Machines Sabotaged . | . . . Overloaded Fab Kills . | . . . Hacking | -11 -10 -10 --------- Run | Yrd Mat Sub Machines Accessed 4 | . 4 . Terminals 3 | . 3 . Fabricators . | . . . Repair Stations . | . . . Recycling Units 1 | . 1 . Scanalyzers . | . . . Garrison Access . | . . . Total Hacks 12 | . 12 . Successful 5 | . 5 . Failed 7 | . 7 . Catastrophic . | . . . Database Lockouts . | . . . Manual 8 | . 8 . Terminals 10 | . 10 . Fabricators . | . . . Repair Stations . | . . . Recycling Units 2 | . 2 . Scanalyzers . | . . . Garrison Access . | . . . Terminal Hacks 3 | . 3 . Prototype ID Bank 1 | . 1 . Emergency Access Points 1 | . 1 . Locate Traps 1 | . 1 . Fabricator Hacks . | . . . Repair Station Hacks . | . . . Recycling Unit Hacks . | . . . Scanalyzer . | . . . Garrison Access Hacks . | . . . Unauthorized Hacks 2 | . 2 . Terminals 2 | . 2 . Botnet 1 | . 1 . Operators 1 | . 1 . Fabricators . | . . . Repair Stations . | . . . Recycling Units . | . . . Scanalyzers . | . . . Garrison Access . | . . . Data Cores Recovered . | . . . Used . | . . . Hacking Detections 3 | . 3 . Full Trace Events . | . . . Feedback Events . | . . . Feedback Blocked . | . . . Robot Schematics Acquired . | . . . Robots Built . | . . . Authchips . | . . . Time . | . . . Total Robot Build Rating . | . . . Part Schematics Acquired . | . . . Parts Built . | . . . Authchips . | . . . Time . | . . . Total Part Build Rating . | . . . Parts Repaired . | . . . Time . | . . . Parts Recycled . | . . . Recycled Matter . | . . . Retrieved Matter . | . . . Retrieved Components . | . . . Parts Scanalyzed . | . . . Part Schematics Acquired . | . . . Parts Damaged . | . . . Bothacking | -11 -10 -10 ------------ Run | Yrd Mat Sub Used RIF Installer . | . . . Robots Hacked . | . . . Non-combat . | . . . Combat . | . . . Robot Hacks Applied . | . . . Relay Couplers Released . | . . . Fabnet Peak Effective % . | . . . Robots Rewired . | . . . Allies Hacked . | . . . Hacks Repelled . | . . . Allies | -11 -10 -10 -------- Run | Yrd Mat Sub Total Allies . | . . . Largest Group . | . . . Highest-Rated Group . | . . . Highest-Rated Ally . | . . . Total Orders . | . . . Ally Attacks . | . . . Total Damage . | . . . Kills . | . . . Allies Corrupted . | . . . Allies Melted . | . . . Intel | -11 -10 -10 ------- Run | Yrd Mat Sub Active Infowar (turns) . | . . . Robot Analysis Total . | . . . Derelict Logs Recovered 1 | . . 1 Drone Launches . | . . . Drone Recoveries . | . . . Exploration | -11 -10 -10 ------------- Run | Yrd Mat Sub Turns Passed 2217 | 150 1433 634 Spaces Moved 1158 | 87 767 304 Core 3 | 3 . . Treads 1155 | 84 767 304 Legs . | . . . Wheels . | . . . Hover . | . . . Flight . | . . . Fastest Speed 50 | 50 160 160 Average Speed 162 | 156 160 171 Slowest Speed 240 | 160 160 240 Overloaded Moves . | . . . Propulsion Burnouts . | . . . Robots Hopped . | . . . Potential Cave-ins . | . . . Cave-ins Triggered . | . . . Exploration Rate (%) 41 | 4 98 22 Regions Visited 2 Branch Regions 1 Pre-discovered Areas . | . . . Known Exits Taken . | . . . Unknown Exits Taken 2 | 1 1 . Scrap Searched . | . . . Spaces Dug . | . . . Terrain Destroyed . | . . . Melee . | . . . Projectile . | . . . AOE . | . . . Terrain Rammed . | . . . Walls Destroyed . | . . . Machines Disabled . | . . . Actions | -11 -10 -10 --------- Run | Yrd Mat Sub Total 1328 | 98 876 354 Wait 23 | . 22 1 Move 1156 | 86 766 304 Hop . | . . . Pick Up 17 | 6 10 1 Fast Attach 12 | 6 6 . Attach 5 | . . 5 Detach 1 | . 1 . Swap 6 | . 5 1 Drop 15 | . 13 2 Fire 93 | . 53 40 Melee . | . . . Ram . | . . . Kick . | . . . Crush . | . . . Escape Stasis . | . . . Rewire . | . . . Trap . | . . . Miscellaneous . | . . . Route ------- -11/Scrapyard -10/Materials (discovered 5 exits: [*Mat x3] / [*Min] / [*Sub]) -10/Subcaves (discovered 1 exit: [*Scr]) History --------- Turn | Location | Event 31 | -11/Scrapyard | Discovered new exit (range 16) 151 | -11/Scrapyard | Entered Materials 301 | -10/Materials | Build established: Mutant 430 | -10/Materials | Discovered new exit (range 16) 750 | -10/Materials | Discovered new exit (range 13) 1088 | -10/Materials | Discovered new exit (range 12) 1315 | -10/Materials | Discovered new exit (range 12) 1532 | -10/Materials | Discovered new exit (range 10) 1584 | -10/Materials | Entered Subcaves 1585 | -10/Subcaves | Approached by a straggling Scientist 1596 | -10/Subcaves | Learned Materials stockpile data 1876 | -10/Subcaves | Lost 3 parts (1p2w) 1957 | -10/Subcaves | Scientist uncovered a shortcut to Scraptown 2038 | -10/Subcaves | Shifting Twisted Machinery released Sub. Machine Gun 2174 | -10/Subcaves | A Subdweller sparked back to life 2174 | -10/Subcaves | A Subdweller sparked back to life 2174 | -10/Subcaves | A Subdweller sparked back to life 2179 | -10/Subcaves | Core integrity fell below 50% 2210 | -10/Subcaves | Core integrity fell below 20% 2218 | -10/Subcaves | Destroyed by G7-V23(R) with Subdweller Beam Cannon Last Messages --------------- 02055_ S-10 Pest destroyed. 02058_ S-10 Pest knocked back. 02060_ Lgt. Ion Engine fries itself beyond repair. 02062_ Flight Unit fries itself beyond repair. 02062_ Lgt. Ion Engine fries itself beyond repair. 02067_ S-10 Pest destroyed. 02174_ AV-LUO(R) creaks and sparks as it begins to move. 02174_ IS-QDF(R) creaks and sparks as it begins to move. 02174_ AF-MD8(R) creaks and sparks as it begins to move. 02176_ AF-MD8(R) destroyed. 02182_ PK-A0Z(R) knocked back. 02186_ AV-LUO(R) affixes Scrap Shield Fragment to Scrap Shield. 02191_ PK-A0Z(R) destroyed. 02194_ AV-LUO(R) suffers critical hit (Blast). 02194_ AV-LUO(R) destroyed. 02196_ Lgt. Treads destroyed. 02206_ Lgt. Armor Plating destroyed. 02207_ Lgt. Cannon destroyed. 02211_ Assault Rifle destroyed. 02215_ Ion Engine destroyed. Map ----- +----------------------------------------------------+ | ??????????????????????????# ???????????## " | | ??????????????????????????# ???????????# | | ??????????????????????????#####??????????# | | ?????????????????????????????????????????## # | | ??????????????????????????????????????????# ## | | ?????????????????????????????????######???# ## | | ?????????????????????????????????# ##??# # | | ??????????????????????????????????# ##?# | | ??????????????????????????????????# ####" | | ???????????????????????????????#### #?## = | | ??????????????????????????????## #?## ## | | ??????????????????????????????# ## ### ##? | | ??????????????????????????????# #### ## #?? | | ??????????????????????????????#####?## #?? | | ???????????? ????????????????????## ##?? | | ???????????? ###????????????????## #??? | | ??????????? ???????????????# ## | | ??????????? ????????######?## ### | | ??????????? ???????# ##?## # #### | | ????????????# #??????? ##?## #??# | | ?????????????# ????????# ##?### #???# | | ??????????????# ???????## ##??# #????# | | ???????????????# ??????## << <#### ##?????# | | ??????????????## ??#### #?####?? | | ??????????????# ### &! R % # ## ##? | | ?????????????# & @ !%=% R %# ### #? | | ?????????????# !%& &%! ## # ## #?? | | ?????????????## %&#* # =## #?? | | ??????????????# ######## #?? | | ??????????????### #???????# ### ###> ### | | ????????????????# #????????# ### ##?### | | ???????????????# ????????# #?## #????# | | ???????????????### ?????????# #?? ????# | | ?????????????????# ?????????# #?## #???# # | | ????????????????? ??????????## #??# #???# ## ## | | ???????????????? #???????????# ?? #??# #####? | | ???????????????# #????????????# ?? #??# ##????? | | ??????????????? #????????????? ?? ???###??????? | | ?????????????????????????????? ?? ????????????? | | ?????????????????????????????? ??""????????????? | | ?????????????????????????????? ??""?????????? # | | ?????????????????????????????? ????????????? | | ??????????????????????????????? &????????????? | | ???????????????????????????????&!????????????? | | ?????????????????????????????????????????????????# | | ?????????????????????????????????????????????????? | | ?????????????????????????????????????????????????? | | ?????????????????????????????????????????????????? | | ?????????????????????????????????????????????????? | | ?????????????????????????????????????????????????? | +----------------------------------------------------+ Best States ------------- Heat Dissipation 25 Energy Generation 10 Energy Capacity 250 Matter Stores 300 Matter Capacity 300 Sight Range 16 Terrain Scan Density 10 Armor Coverage 150 Evasion (%) 40 Recoil Reduction 2 Item Schematics ----------------- None Robot Schematics ------------------ None Fabricated ------------ Nothing Repaired ---------- Nothing Alien Tech Used ----------------- None Achievements -------------- None Challenges ------------ None Game ------ Seed ImprinterArcInitializer Manual? 0 Play Time 00:11:23 Cumulative 39.6 hours Start 2025.10.19 @ 13:52:22 End 2025.10.19 @ 14:20:48 Sessions 1 Manual Loads 0 Difficulty Rogue Special Mode None Game No. 99 Rogue 92 Adventurer 7 Explorer 0 Win Type - Total 1 Types 1/0/0/0/0/0/0/0/0/0 Lore% 10 Gallery% 32 Achievement% 32 Wizard Run 0 Options --------- Layout 0 ASCII 0 Keyboard 1 Movement Vi Keybinds 0 Fullscreen 1 Font 18/SmallcapsGlow Map View 112x50 Zoom Use 0% Tactical HUD 1 Map Filters NONE Filters NONE Steam X RUN: 47549adc-2c2a-4aa8-b003-4550fefa19f9